[Event "Early-Titled-Tuesday-Blitz-July-09-2024"]
[Site "Chess.com"]
[Date "2024.07.09"]
[Round "4"]
[White "Vision_64"]
[Black "EgorYakovlev"]
[Result "0-1"]
[WhiteElo "2295"]
[BlackElo "2504"]
[TimeControl "180+1"]
[EndTime "8:39:31 PDT"]
[Termination "EgorYakovlev won by resignation"]

1. e4 {[%clk 0:03:00.9]} 1... c5 {[%clk 0:02:59.1]} 2. Nc3 {[%clk 0:02:59.3]}
2... a6 {[%clk 0:02:56.9]} 3. f4 {[%clk 0:02:55.8]} 3... b5 {[%clk 0:02:56.9]}
4. Nf3 {[%clk 0:02:53.9]} 4... Bb7 {[%clk 0:02:56.4]} 5. d3 {[%clk 0:02:50.8]}
5... e6 {[%clk 0:02:55.1]} 6. g3 {[%clk 0:02:44.3]} 6... b4 {[%clk 0:02:54.8]}
7. Ne2 {[%clk 0:02:42.6]} 7... d5 {[%clk 0:02:54.6]} 8. e5 {[%clk 0:02:38.6]}
8... h5 {[%clk 0:02:54.3]} 9. Bg2 {[%clk 0:02:38.1]} 9... Nh6 {[%clk 0:02:53.9]}
10. O-O {[%clk 0:02:30.5]} 10... Nf5 {[%clk 0:02:53.1]} 11. c3 {[%clk
0:02:25.5]} 11... Nc6 {[%clk 0:02:48.7]} 12. a3 {[%clk 0:02:23.2]} 12... a5
{[%clk 0:02:44.1]} 13. axb4 {[%clk 0:02:20.1]} 13... axb4 {[%clk 0:02:44.4]} 14.
Rxa8 {[%clk 0:02:18.3]} 14... Qxa8 {[%clk 0:02:45.3]} 15. Bd2 {[%clk 0:02:12.9]}
15... Qa6 {[%clk 0:02:40.3]} 16. cxb4 {[%clk 0:02:04.6]} 16... Qxd3 {[%clk
0:02:39.5]} 17. bxc5 {[%clk 0:01:35.1]} 17... Bxc5+ {[%clk 0:02:40.4]} 18. Kh1
{[%clk 0:01:35.3]} 18... h4 {[%clk 0:02:39.1]} 19. g4 {[%clk 0:01:31.6]} 19...
Ng3+ {[%clk 0:02:35.9]} 20. Nxg3 {[%clk 0:01:28.9]} 20... hxg3 {[%clk
0:02:36.8]} 21. h3 {[%clk 0:01:29.1]} 21... O-O {[%clk 0:01:52.6]} 22. Bc3
{[%clk 0:01:20.7]} 22... Ba6 {[%clk 0:01:47.1]} 23. Qxd3 {[%clk 0:01:18.9]}
23... Bxd3 {[%clk 0:01:48]} 24. Ra1 {[%clk 0:01:16.4]} 24... Rb8 {[%clk
0:01:24.7]} 25. Ne1 {[%clk 0:00:53.6]} 25... Bc4 {[%clk 0:01:13.7]} 26. Bf3
{[%clk 0:00:36.4]} 26... Nd4 {[%clk 0:01:13.2]} 27. Kg2 {[%clk 0:00:33.2]} 27...
Nxf3 {[%clk 0:01:11.8]} 28. Nxf3 {[%clk 0:00:33.1]} 28... Bf2 {[%clk 0:01:09.4]}
29. Nd4 {[%clk 0:00:25.5]} 29... Bd3 {[%clk 0:01:07.9]} 30. Nc6 {[%clk 0:00:16]}
30... Be4+ {[%clk 0:01:06.8]} 31. Kf1 {[%clk 0:00:15.4]} 31... Rb7 {[%clk
0:00:58.1]} 32. Ra8+ {[%clk 0:00:14.7]} 32... Kh7 {[%clk 0:00:57.8]} 33. Bd4
{[%clk 0:00:10.2]} 33... Bxd4 {[%clk 0:00:39.4]} 34. Nxd4 {[%clk 0:00:10.3]}
34... Rxb2 {[%clk 0:00:35.8]} 35. Ne2 {[%clk 0:00:07.7]} 35... g2+ {[%clk
0:00:34.3]} 36. Kf2 {[%clk 0:00:07.9]} 36... Rxe2+ {[%clk 0:00:33.6]} 0-1

[Event "Early-Titled-Tuesday-Blitz-July-09-2024"]
[Site "Chess.com"]
[Date "2024.07.09"]
[Round "4"]
[White "GM-2024-GM"]
[Black "JAN2404"]
[Result "0-1"]
[WhiteElo "2311"]
[BlackElo "2072"]
[TimeControl "180+1"]
[EndTime "8:39:33 PDT"]
[Termination "JAN2404 won on time"]

1. e4 {[%clk 0:02:53.2]} 1... c5 {[%clk 0:02:59.6]} 2. Nf3 {[%clk 0:02:53.1]}
2... d6 {[%clk 0:02:59.9]} 3. d4 {[%clk 0:02:53.5]} 3... cxd4 {[%clk 0:02:59.9]}
4. Nxd4 {[%clk 0:02:54.4]} 4... Nf6 {[%clk 0:03:00.2]} 5. Nc3 {[%clk 0:02:54.2]}
5... Nc6 {[%clk 0:02:59.2]} 6. Bg5 {[%clk 0:02:54]} 6... e6 {[%clk 0:02:58.5]}
7. Qd2 {[%clk 0:02:54.2]} 7... a6 {[%clk 0:02:57.4]} 8. O-O-O {[%clk 0:02:54.3]}
8... Bd7 {[%clk 0:02:53.3]} 9. f3 {[%clk 0:02:36.8]} 9... Nxd4 {[%clk
0:02:52.1]} 10. Qxd4 {[%clk 0:02:36.7]} 10... Be7 {[%clk 0:02:52.5]} 11. Kb1
{[%clk 0:02:10.6]} 11... h6 {[%clk 0:02:35.5]} 12. Bxf6 {[%clk 0:02:03.8]} 12...
gxf6 {[%clk 0:02:21.6]} 13. f4 {[%clk 0:01:59.5]} 13... Qc7 {[%clk 0:02:15.1]}
14. Be2 {[%clk 0:01:52.9]} 14... O-O-O {[%clk 0:01:54.6]} 15. Bh5 {[%clk
0:01:50]} 15... Rhg8 {[%clk 0:01:46.5]} 16. g3 {[%clk 0:01:31.6]} 16... Rg7
{[%clk 0:01:40.1]} 17. Ne2 {[%clk 0:00:48.3]} 17... Kb8 {[%clk 0:01:30.5]} 18.
Rd3 {[%clk 0:00:47.4]} 18... Bc6 {[%clk 0:01:14]} 19. Rhd1 {[%clk 0:00:43.4]}
19... Qa5 {[%clk 0:00:54.1]} 20. Bf3 {[%clk 0:00:38.3]} 20... d5 {[%clk
0:00:23.7]} 21. Qe3 {[%clk 0:00:22.4]} 21... Bb5 {[%clk 0:00:18.3]} 22. Rb3
{[%clk 0:00:16.5]} 22... Bc4 {[%clk 0:00:17]} 23. exd5 {[%clk 0:00:10.6]} 23...
Bxb3 {[%clk 0:00:15.7]} 24. axb3 {[%clk 0:00:11.1]} 24... Bc5 {[%clk 0:00:14.8]}
25. Qe4 {[%clk 0:00:06.6]} 25... Qb6 {[%clk 0:00:12.4]} 26. Nc3 {[%clk
0:00:02.8]} 26... Rgg8 {[%clk 0:00:10]} 27. dxe6 {[%clk 0:00:01.2]} 27... fxe6
{[%clk 0:00:09.8]} 0-1

[Event "Early-Titled-Tuesday-Blitz-July-09-2024"]
[Site "Chess.com"]
[Date "2024.07.09"]
[Round "4"]
[White "BobbyFischer1508"]
[Black "vikber19611"]
[Result "1-0"]
[WhiteElo "2442"]
[BlackElo "1664"]
[TimeControl "180+1"]
[EndTime "8:39:38 PDT"]
[Termination "BobbyFischer1508 won on time"]

1. b3 {[%clk 0:03:00.9]} 1... e5 {[%clk 0:02:57.4]} 2. Bb2 {[%clk 0:03:00.1]}
2... f6 {[%clk 0:02:57.4]} 3. d4 {[%clk 0:02:59.1]} 3... exd4 {[%clk 0:02:53.9]}
4. Qxd4 {[%clk 0:02:58]} 4... Nc6 {[%clk 0:02:53.2]} 5. Qd2 {[%clk 0:02:57.4]}
5... d5 {[%clk 0:02:46.4]} 6. Nc3 {[%clk 0:02:51]} 6... Be6 {[%clk 0:02:42.4]}
7. e3 {[%clk 0:02:48.4]} 7... Bc5 {[%clk 0:02:32.8]} 8. O-O-O {[%clk 0:02:46]}
8... Nge7 {[%clk 0:02:29.3]} 9. Nge2 {[%clk 0:02:41.2]} 9... O-O {[%clk
0:02:27.7]} 10. Nf4 {[%clk 0:02:41]} 10... Bf7 {[%clk 0:01:58]} 11. Ncxd5 {[%clk
0:02:40.4]} 11... Nxd5 {[%clk 0:01:54.9]} 12. Nxd5 {[%clk 0:02:40]} 12... Re8
{[%clk 0:01:40.1]} 13. Be2 {[%clk 0:02:36.9]} 13... Ne7 {[%clk 0:01:29.7]} 14.
Nxe7+ {[%clk 0:02:13.5]} 14... Qxe7 {[%clk 0:01:27.8]} 15. Bf3 {[%clk
0:01:53.2]} 15... c6 {[%clk 0:01:23.9]} 16. Qd7 {[%clk 0:01:47.7]} 16... Rac8
{[%clk 0:00:56.1]} 17. Qxe7 {[%clk 0:01:42.2]} 17... Rxe7 {[%clk 0:00:45]} 18.
Rd2 {[%clk 0:01:38.8]} 18... Kf8 {[%clk 0:00:43.4]} 19. Rhd1 {[%clk 0:01:38.3]}
19... Ke8 {[%clk 0:00:43]} 20. Bg4 {[%clk 0:01:13.7]} 20... Be6 {[%clk
0:00:37.7]} 21. Bxe6 {[%clk 0:01:09.2]} 21... Rxe6 {[%clk 0:00:37.5]} 22. Rd7
{[%clk 0:00:56.6]} 22... Re7 {[%clk 0:00:37.2]} 23. Rxe7+ {[%clk 0:00:56.2]}
23... Kxe7 {[%clk 0:00:36.4]} 24. Rd3 {[%clk 0:00:56.1]} 24... Rd8 {[%clk
0:00:31.5]} 25. Rxd8 {[%clk 0:00:54.9]} 25... Kxd8 {[%clk 0:00:31.6]} 26. Kd2
{[%clk 0:00:55.2]} 26... Kd7 {[%clk 0:00:31.3]} 27. Ke2 {[%clk 0:00:55.6]} 27...
Ke6 {[%clk 0:00:30.9]} 28. e4 {[%clk 0:00:55.5]} 28... Bd6 {[%clk 0:00:27.7]}
29. h3 {[%clk 0:00:52.3]} 29... Bc5 {[%clk 0:00:23.4]} 30. f4 {[%clk 0:00:50.4]}
30... b5 {[%clk 0:00:19.9]} 31. Kf3 {[%clk 0:00:49.2]} 31... Bb6 {[%clk
0:00:17]} 32. g4 {[%clk 0:00:48.2]} 32... Bc7 {[%clk 0:00:14.2]} 33. f5+ {[%clk
0:00:46.6]} 33... Ke7 {[%clk 0:00:11.7]} 34. g5 {[%clk 0:00:43.8]} 34... Kf7
{[%clk 0:00:04]} 35. h4 {[%clk 0:00:43.1]} 35... Ke7 {[%clk 0:00:03.5]} 36. Kg4
{[%clk 0:00:42.3]} 36... Kf7 {[%clk 0:00:03.8]} 37. h5 {[%clk 0:00:37.4]} 37...
Bd6 {[%clk 0:00:03.5]} 38. g6+ {[%clk 0:00:35.3]} 38... hxg6 {[%clk 0:00:03.1]}
39. hxg6+ {[%clk 0:00:34]} 39... Kf8 {[%clk 0:00:02.9]} 40. Kf3 {[%clk
0:00:33.8]} 40... Bc5 {[%clk 0:00:02.6]} 41. e5 {[%clk 0:00:32.9]} 1-0

[Event "Early-Titled-Tuesday-Blitz-July-09-2024"]
[Site "Chess.com"]
[Date "2024.07.09"]
[Round "4"]
[White "Djager97"]
[Black "Rud_Makarian"]
[Result "0-1"]
[WhiteElo "2613"]
[BlackElo "3004"]
[TimeControl "180+1"]
[EndTime "8:39:42 PDT"]
[Termination "Rud_Makarian won on time"]

1. e4 {[%clk 0:03:00.9]} 1... c5 {[%clk 0:03:00]} 2. Nf3 {[%clk 0:03:00.6]} 2...
d6 {[%clk 0:03:00.8]} 3. d4 {[%clk 0:03:00.4]} 3... cxd4 {[%clk 0:03:01.7]} 4.
Nxd4 {[%clk 0:03:00.9]} 4... Nf6 {[%clk 0:03:02.6]} 5. Nc3 {[%clk 0:03:01.3]}
5... Nc6 {[%clk 0:03:03.5]} 6. Bg5 {[%clk 0:03:00.9]} 6... Bd7 {[%clk
0:03:03.9]} 7. Bxf6 {[%clk 0:02:59.9]} 7... gxf6 {[%clk 0:03:04.8]} 8. Nb3
{[%clk 0:02:55.8]} 8... e6 {[%clk 0:03:02.5]} 9. Qh5 {[%clk 0:02:53.6]} 9... a6
{[%clk 0:02:57]} 10. O-O-O {[%clk 0:02:48.9]} 10... b5 {[%clk 0:02:57.6]} 11.
Bd3 {[%clk 0:02:33.9]} 11... b4 {[%clk 0:02:54.1]} 12. Ne2 {[%clk 0:02:33.9]}
12... Qb6 {[%clk 0:02:49.2]} 13. f4 {[%clk 0:02:19.9]} 13... a5 {[%clk
0:02:48.7]} 14. Kb1 {[%clk 0:02:17.6]} 14... a4 {[%clk 0:02:48.2]} 15. Nd2
{[%clk 0:02:18.2]} 15... Qa5 {[%clk 0:02:36.4]} 16. f5 {[%clk 0:02:10.3]} 16...
Ne5 {[%clk 0:02:20.9]} 17. fxe6 {[%clk 0:01:22.8]} 17... Bxe6 {[%clk 0:02:21.8]}
18. Nd4 {[%clk 0:01:22.2]} 18... Nxd3 {[%clk 0:02:21]} 19. Qxa5 {[%clk 0:01:21]}
19... Rxa5 {[%clk 0:02:18.6]} 20. cxd3 {[%clk 0:01:20.3]} 20... Bh6 {[%clk
0:02:19]} 21. N2f3 {[%clk 0:00:57.1]} 21... Kd7 {[%clk 0:02:14.5]} 22. Nh4
{[%clk 0:00:50.5]} 22... Rc8 {[%clk 0:02:13.8]} 23. Nhf5 {[%clk 0:00:50.2]}
23... Bf4 {[%clk 0:02:13.5]} 24. g3 {[%clk 0:00:39.1]} 24... Be5 {[%clk
0:02:12.5]} 25. Rc1 {[%clk 0:00:29.7]} 25... Rac5 {[%clk 0:02:09.5]} 26. Rxc5
{[%clk 0:00:29]} 26... dxc5 {[%clk 0:02:08.7]} 27. Nf3 {[%clk 0:00:17.3]} 27...
a3 {[%clk 0:02:01]} 28. Nxe5+ {[%clk 0:00:14.1]} 28... fxe5 {[%clk 0:02:00.9]}
29. Rf1 {[%clk 0:00:08.9]} 29... axb2 {[%clk 0:01:59.7]} 30. Ne3 {[%clk
0:00:03.6]} 30... Ra8 {[%clk 0:01:57.9]} 31. Nc4 {[%clk 0:00:03.9]} 31... Bxc4
{[%clk 0:01:52.5]} 32. dxc4 {[%clk 0:00:04.8]} 32... Ke6 {[%clk 0:01:52.7]} 33.
Rd1 {[%clk 0:00:04.5]} 33... Ra3 {[%clk 0:01:42.3]} 34. Rd5 {[%clk 0:00:04.9]}
34... Re3 {[%clk 0:01:42.9]} 35. Rxc5 {[%clk 0:00:05.1]} 35... Rxe4 {[%clk
0:01:43.6]} 36. Kxb2 {[%clk 0:00:04.7]} 36... Re2+ {[%clk 0:01:36.8]} 37. Kb3
{[%clk 0:00:04.4]} 37... Rxh2 {[%clk 0:01:37.7]} 38. Rc8 {[%clk 0:00:02.6]}
38... Rg2 {[%clk 0:01:36.4]} 39. c5 {[%clk 0:00:01.9]} 39... Rxg3+ {[%clk
0:01:36]} 40. Kxb4 {[%clk 0:00:02.5]} 40... Rg1 {[%clk 0:01:36.1]} 41. c6 {[%clk
0:00:01]} 41... Rc1 {[%clk 0:01:36.6]} 42. Kb5 {[%clk 0:00:01.1]} 42... f5
{[%clk 0:01:33.8]} 43. Kb6 {[%clk 0:00:01.5]} 43... f4 {[%clk 0:01:34.3]} 44. c7
{[%clk 0:00:02]} 44... f3 {[%clk 0:01:01.9]} 45. Re8+ {[%clk 0:00:01.9]} 45...
Kf7 {[%clk 0:01:02.5]} 46. c8=Q {[%clk 0:00:02.1]} 46... Rxc8 {[%clk 0:01:03.4]}
47. Rxc8 {[%clk 0:00:02.8]} 47... f2 {[%clk 0:01:03]} 48. Rc1 {[%clk 0:00:02.6]}
48... e4 {[%clk 0:01:03.5]} 49. a4 {[%clk 0:00:02.9]} 49... e3 {[%clk
0:01:04.1]} 50. Rf1 {[%clk 0:00:03.1]} 50... Ke6 {[%clk 0:01:03.5]} 51. a5
{[%clk 0:00:03.4]} 51... e2 {[%clk 0:01:04.1]} 52. Rxf2 {[%clk 0:00:03.7]} 52...
e1=Q {[%clk 0:01:04.8]} 53. Rb2 {[%clk 0:00:03.1]} 53... Qe3+ {[%clk 0:01:02.8]}
54. Kb5 {[%clk 0:00:02.8]} 54... Qd3+ {[%clk 0:01:03.5]} 55. Kb4 {[%clk
0:00:02.2]} 55... Qd4+ {[%clk 0:01:03.9]} 56. Ka3 {[%clk 0:00:02.1]} 56... Qc3+
{[%clk 0:01:02.7]} 0-1

[Event "Early-Titled-Tuesday-Blitz-July-09-2024"]
[Site "Chess.com"]
[Date "2024.07.09"]
[Round "4"]
[White "Millerkallpa"]
[Black "FloMasterAAK"]
[Result "0-1"]
[WhiteElo "2248"]
[BlackElo "2574"]
[TimeControl "180+1"]
[EndTime "8:39:44 PDT"]
[Termination "FloMasterAAK won on time"]

1. e4 {[%clk 0:03:00.9]} 1... c5 {[%clk 0:03:00.1]} 2. Nf3 {[%clk 0:02:59.2]}
2... e6 {[%clk 0:03:00.2]} 3. d4 {[%clk 0:02:54.9]} 3... cxd4 {[%clk 0:03:01.1]}
4. Nxd4 {[%clk 0:02:54]} 4... Nc6 {[%clk 0:03:01.7]} 5. Be3 {[%clk 0:02:50.7]}
5... Nf6 {[%clk 0:02:58.6]} 6. Bd3 {[%clk 0:02:49.6]} 6... Qc7 {[%clk
0:02:55.8]} 7. O-O {[%clk 0:02:48.6]} 7... h5 {[%clk 0:02:55.9]} 8. h3 {[%clk
0:02:44.9]} 8... a6 {[%clk 0:02:55.1]} 9. Nc3 {[%clk 0:02:43.3]} 9... b5 {[%clk
0:02:54.6]} 10. Re1 {[%clk 0:02:42.5]} 10... Bb7 {[%clk 0:02:53.1]} 11. a3
{[%clk 0:02:36.3]} 11... Rc8 {[%clk 0:02:51.6]} 12. Nb3 {[%clk 0:02:21.7]} 12...
Ne5 {[%clk 0:02:43.5]} 13. Bd4 {[%clk 0:02:19]} 13... Be7 {[%clk 0:02:39.3]} 14.
Qd2 {[%clk 0:02:11.2]} 14... d6 {[%clk 0:02:11.4]} 15. f4 {[%clk 0:02:01]} 15...
Nc4 {[%clk 0:02:10.2]} 16. Bxc4 {[%clk 0:02:00]} 16... bxc4 {[%clk 0:02:11.1]}
17. Nc1 {[%clk 0:01:58.8]} 17... Kf8 {[%clk 0:02:03.6]} 18. e5 {[%clk
0:01:54.3]} 18... dxe5 {[%clk 0:01:52.6]} 19. Bxe5 {[%clk 0:01:55.2]} 19... Qc5+
{[%clk 0:01:49]} 20. Bd4 {[%clk 0:01:47.5]} 20... Qf5 {[%clk 0:01:41.3]} 21.
N1e2 {[%clk 0:01:45.3]} 21... h4 {[%clk 0:01:39.9]} 22. Be5 {[%clk 0:01:42.3]}
22... Rd8 {[%clk 0:01:37]} 23. Nd4 {[%clk 0:01:38.1]} 23... Qg6 {[%clk
0:01:36.7]} 24. Rad1 {[%clk 0:01:34.9]} 24... Rh5 {[%clk 0:01:29.5]} 25. Qf2
{[%clk 0:01:33]} 25... Kg8 {[%clk 0:01:26.9]} 26. Nf3 {[%clk 0:01:18.7]} 26...
Rxd1 {[%clk 0:01:19]} 27. Rxd1 {[%clk 0:01:19.6]} 27... Ne4 {[%clk 0:01:18.6]}
28. Nxe4 {[%clk 0:01:01.9]} 28... Bxe4 {[%clk 0:01:19.2]} 29. Rd7 {[%clk
0:01:00.6]} 29... Bc5 {[%clk 0:01:10.1]} 30. Qxc5 {[%clk 0:00:40]} 30... Bxf3
{[%clk 0:01:09.6]} 31. Rd2 {[%clk 0:00:35.7]} 31... Bd5 {[%clk 0:00:56.2]} 32.
Qc8+ {[%clk 0:00:19.6]} 32... Kh7 {[%clk 0:00:56.1]} 33. Qxa6 {[%clk 0:00:13.9]}
33... Qe4 {[%clk 0:00:47.8]} 34. Bc3 {[%clk 0:00:07.7]} 34... Rh6 {[%clk
0:00:45.3]} 35. Qc8 {[%clk 0:00:05.8]} 35... Rg6 {[%clk 0:00:45.2]} 36. Kf1
{[%clk 0:00:02.4]} 36... Qxf4+ {[%clk 0:00:39.6]} 37. Ke1 {[%clk 0:00:02.1]}
37... Bxg2 {[%clk 0:00:38.8]} 38. Rd8 {[%clk 0:00:01.3]} 38... Qf1+ {[%clk
0:00:36.8]} 39. Kd2 {[%clk 0:00:01.5]} 39... Qf2+ {[%clk 0:00:37]} 40. Kd1
{[%clk 0:00:01.3]} 40... Bf3+ {[%clk 0:00:36.9]} 41. Kc1 {[%clk 0:00:01.8]}
41... Rg1+ {[%clk 0:00:37]} 0-1

[Event "Early-Titled-Tuesday-Blitz-July-09-2024"]
[Site "Chess.com"]
[Date "2024.07.09"]
[Round "4"]
[White "Massakru"]
[Black "GrotBchess"]
[Result "0-1"]
[WhiteElo "2389"]
[BlackElo "2596"]
[TimeControl "180+1"]
[EndTime "8:39:46 PDT"]
[Termination "GrotBchess won on time"]

1. e4 {[%clk 0:03:00.9]} 1... e5 {[%clk 0:02:56.9]} 2. Nf3 {[%clk 0:02:58.8]}
2... Nc6 {[%clk 0:02:53.5]} 3. d4 {[%clk 0:02:58.6]} 3... exd4 {[%clk 0:02:53]}
4. Nxd4 {[%clk 0:02:59.5]} 4... Nf6 {[%clk 0:02:50.6]} 5. Nxc6 {[%clk
0:02:59.6]} 5... bxc6 {[%clk 0:02:49.1]} 6. e5 {[%clk 0:03:00]} 6... Nd5 {[%clk
0:02:48.2]} 7. c4 {[%clk 0:02:59.5]} 7... Nb6 {[%clk 0:02:46]} 8. Nc3 {[%clk
0:02:58.1]} 8... Ba6 {[%clk 0:02:43.8]} 9. c5 {[%clk 0:02:55.6]} 9... Bxf1
{[%clk 0:02:42.8]} 10. Kxf1 {[%clk 0:02:37.1]} 10... Bxc5 {[%clk 0:02:40.3]} 11.
Qg4 {[%clk 0:02:37]} 11... Kf8 {[%clk 0:02:34.5]} 12. h4 {[%clk 0:02:31.3]}
12... h5 {[%clk 0:02:32.8]} 13. Qf5 {[%clk 0:02:28.5]} 13... Qe7 {[%clk
0:02:30]} 14. Ne4 {[%clk 0:02:23.6]} 14... Bd4 {[%clk 0:02:28.2]} 15. Bf4 {[%clk
0:02:13.7]} 15... Qe6 {[%clk 0:02:22.8]} 16. Qg5 {[%clk 0:02:13.7]} 16... Nd5
{[%clk 0:02:18.1]} 17. Bg3 {[%clk 0:02:09.5]} 17... Re8 {[%clk 0:02:10.9]} 18.
Re1 {[%clk 0:01:53.1]} 18... Bxb2 {[%clk 0:01:51.6]} 19. Qd2 {[%clk 0:01:45.2]}
19... Ba3 {[%clk 0:01:45.9]} 20. Rh3 {[%clk 0:01:22.5]} 20... Bb4 {[%clk
0:01:43]} 21. Qd1 {[%clk 0:01:15.3]} 21... Bxe1 {[%clk 0:01:37.4]} 22. Qxe1
{[%clk 0:01:13.8]} 22... Rh6 {[%clk 0:01:34.8]} 23. Qa5 {[%clk 0:01:06.9]} 23...
Rg6 {[%clk 0:01:25.7]} 24. Qxa7 {[%clk 0:00:53.4]} 24... Nf4 {[%clk 0:01:19.2]}
25. Qc5+ {[%clk 0:00:46.8]} 25... Kg8 {[%clk 0:01:10.3]} 26. Bxf4 {[%clk
0:00:45.8]} 26... Qg4 {[%clk 0:01:04.6]} 27. Rf3 {[%clk 0:00:30.5]} 27... Qxg2+
{[%clk 0:00:51.7]} 28. Ke2 {[%clk 0:00:30.6]} 28... Rge6 {[%clk 0:00:30.7]} 29.
Ng5 {[%clk 0:00:26.3]} 29... R6e7 {[%clk 0:00:28.6]} 30. Bg3 {[%clk 0:00:20.6]}
30... d6 {[%clk 0:00:21.3]} 31. Qxc6 {[%clk 0:00:17.3]} 31... dxe5 {[%clk
0:00:21.4]} 32. Qe4 {[%clk 0:00:09.9]} 32... g6 {[%clk 0:00:14.9]} 33. Rc3
{[%clk 0:00:05.8]} 33... Qxe4+ {[%clk 0:00:13.5]} 34. Nxe4 {[%clk 0:00:06.7]}
34... Kg7 {[%clk 0:00:13.5]} 35. Ng5 {[%clk 0:00:01.8]} 35... f5 {[%clk
0:00:12.7]} 0-1

[Event "Early-Titled-Tuesday-Blitz-July-09-2024"]
[Site "Chess.com"]
[Date "2024.07.09"]
[Round "4"]
[White "MikeWizard"]
[Black "kyawmyataung2005"]
[Result "1-0"]
[WhiteElo "2085"]
[BlackElo "2330"]
[TimeControl "180+1"]
[EndTime "8:39:46 PDT"]
[Termination "MikeWizard won on time"]

1. d4 {[%clk 0:03:00.9]} 1... Nf6 {[%clk 0:02:58.8]} 2. c4 {[%clk 0:03:00]} 2...
e6 {[%clk 0:02:58.8]} 3. Nf3 {[%clk 0:02:58.9]} 3... d5 {[%clk 0:02:58.6]} 4. g3
{[%clk 0:02:58.4]} 4... Bb4+ {[%clk 0:02:57.7]} 5. Bd2 {[%clk 0:02:57.4]} 5...
Bxd2+ {[%clk 0:02:56.4]} 6. Qxd2 {[%clk 0:02:55.9]} 6... O-O {[%clk 0:02:56.9]}
7. Nc3 {[%clk 0:02:54.6]} 7... dxc4 {[%clk 0:02:56.3]} 8. e3 {[%clk 0:02:51.9]}
8... c5 {[%clk 0:02:55.4]} 9. Bxc4 {[%clk 0:02:47.9]} 9... cxd4 {[%clk
0:02:16.2]} 10. Qxd4 {[%clk 0:02:46.8]} 10... Qe7 {[%clk 0:02:15.2]} 11. O-O
{[%clk 0:02:42.9]} 11... Nc6 {[%clk 0:02:15]} 12. Qh4 {[%clk 0:02:41.7]} 12...
a6 {[%clk 0:02:13.4]} 13. Rac1 {[%clk 0:02:32.2]} 13... b5 {[%clk 0:02:01.4]}
14. Bd3 {[%clk 0:02:32.1]} 14... Bb7 {[%clk 0:01:46.9]} 15. Ne4 {[%clk
0:02:19.9]} 15... Nxe4 {[%clk 0:01:26.9]} 16. Bxe4 {[%clk 0:02:19.8]} 16... Qxh4
{[%clk 0:01:25.8]} 17. Nxh4 {[%clk 0:02:19.5]} 17... Rac8 {[%clk 0:01:26.2]} 18.
Rfd1 {[%clk 0:02:18.5]} 18... Na5 {[%clk 0:01:18.1]} 19. Bxb7 {[%clk 0:02:17.6]}
19... Nxb7 {[%clk 0:01:18.5]} 20. Rxc8 {[%clk 0:02:17.2]} 20... Rxc8 {[%clk
0:01:19]} 21. Rd7 {[%clk 0:02:17]} 21... Nc5 {[%clk 0:01:15.9]} 22. Ra7 {[%clk
0:02:16.5]} 22... b4 {[%clk 0:01:12.9]} 23. Nf3 {[%clk 0:02:14.2]} 23... f6
{[%clk 0:01:11.9]} 24. Nd4 {[%clk 0:02:14]} 24... Kf8 {[%clk 0:01:06.5]} 25. Kg2
{[%clk 0:02:00.3]} 25... Rd8 {[%clk 0:00:41.7]} 26. Rc7 {[%clk 0:01:48.8]} 26...
Rd5 {[%clk 0:00:40.5]} 27. h4 {[%clk 0:01:40.3]} 27... h5 {[%clk 0:00:27.7]} 28.
Nc6 {[%clk 0:01:38.5]} 28... Nd3 {[%clk 0:00:21.7]} 29. Ra7 {[%clk 0:01:36.6]}
29... Nxb2 {[%clk 0:00:17.6]} 30. Nxb4 {[%clk 0:01:35.8]} 30... Ra5 {[%clk
0:00:16.5]} 31. Rxa6 {[%clk 0:01:34.2]} 31... Rxa6 {[%clk 0:00:17]} 32. Nxa6
{[%clk 0:01:34.4]} 32... Ke7 {[%clk 0:00:17.7]} 33. Nc5 {[%clk 0:01:31.8]} 33...
Kd6 {[%clk 0:00:17.7]} 34. Nb3 {[%clk 0:01:27.3]} 34... Kd5 {[%clk 0:00:17.4]}
35. Kf3 {[%clk 0:01:27.3]} 35... Kc4 {[%clk 0:00:17.3]} 36. g4 {[%clk 0:01:25]}
36... hxg4+ {[%clk 0:00:16.5]} 37. Kxg4 {[%clk 0:01:25.1]} 37... Nd3 {[%clk
0:00:16.7]} 38. Kf3 {[%clk 0:01:24.1]} 38... Nb4 {[%clk 0:00:14.2]} 39. Nd4
{[%clk 0:01:22.3]} 39... Kd5 {[%clk 0:00:12.9]} 40. a3 {[%clk 0:01:21]} 40...
Nd3 {[%clk 0:00:12.8]} 41. a4 {[%clk 0:01:19.5]} 41... Ne5+ {[%clk 0:00:12.6]}
42. Ke2 {[%clk 0:01:17.3]} 42... Nc4 {[%clk 0:00:13.5]} 43. h5 {[%clk
0:01:14.3]} 43... f5 {[%clk 0:00:04.9]} 44. Nb5 {[%clk 0:01:08.2]} 44... Kc5
{[%clk 0:00:04.4]} 45. Kd3 {[%clk 0:01:04.6]} 45... Nb2+ {[%clk 0:00:04]} 46.
Ke2 {[%clk 0:01:01.6]} 46... Nxa4 {[%clk 0:00:04.9]} 47. Nc7 {[%clk 0:00:59.3]}
47... Kd6 {[%clk 0:00:02.6]} 48. Ne8+ {[%clk 0:00:59.1]} 48... Ke7 {[%clk
0:00:03.1]} 49. Nxg7 {[%clk 0:00:59.1]} 49... Kf7 {[%clk 0:00:03.6]} 50. h6
{[%clk 0:00:57.8]} 50... Nc3+ {[%clk 0:00:02.4]} 51. Kd3 {[%clk 0:00:55.8]}
51... Nd5 {[%clk 0:00:02.5]} 52. Nxe6 {[%clk 0:00:55.4]} 1-0